Cogmind - Beta 15 @@@ ROGUE MODE // 2025.06.22 @ 22:24:57 Player: Skysub Result: Destroyed by J2-W70(R) with Subdweller Machine Gun Performance ------------- Evolutions (0) 0 Regions Visited (2) 400 Robots Destroyed (37) 185 Value Destroyed (765) 765 Prototype IDs (11) 220 Alien Tech Used (0) 0 Bonus (-12) -12 TOTAL SCORE: 1558 Bonus ------- Friendly Fire -12 Cogmind --------- Core Integrity 0/250 Matter 123/300 Energy 100/100 System Corruption 1% Temperature Cool (0) Movement Treading (160) Location -10/Subcaves Parts ------- > --- POWER (1) -------- (None) > --- PROPULSION (2) --- Light Treads > --- UTILITY (2) ------ Large Storage Unit > --- WEAPON (2) ------- (None) > --- INVENTORY (15) --- Arachnoskeleton Subdweller Optics Subdweller Optics Subdweller Optics Scrap Shield Scrap Shield Subdweller Laser Subdweller Laser Hammer Peak State ------------ > --- POWER ------------ Makeshift Power Source > --- PROPULSION ------- Light Treads Subdweller Monowheel > --- UTILITY ---------- Large Storage Unit Medium Armor Plating > --- WEAPON ----------- Battle Rifle Subdweller Shrapnel Launcher > --- INVENTORY -------- Arachnoskeleton Subdweller Optics Subdweller Optics Subdweller Optics Medium Armor Plating Scrap Shield Scrap Shield Subdweller Laser Subdweller Laser Hammer [Rating: 18] Favorites ----------- Power Light Ion Engine Engine Light Ion Engine Propulsion Light Treads Treads Light Treads Wheel Subdweller Monowheel Utility Large Storage Unit Device Structural Scanner Storage Large Storage Unit Protection Medium Armor Plating Weapon Autogun Ballistic Gun Autogun Launcher Subdweller Shrapnel Launcher Special Weapon Mining Laser Impact Weapon Hammer Build | -11 -10 -10 ------- Run | Yrd Mat Sub Slots Evolved . | . . . Power . | . . . Propulsion . | . . . Utility . | . . . Weapon . | . . . Parts Attached 30 | 7 7 16 Power 4 | 1 . 3 Engine 4 | 1 . 3 Core . | . . . Reactor . | . . . Propulsion 8 | 2 1 5 Treads 5 | 2 1 2 Leg . | . . . Wheel 3 | . . 3 Hover . | . . . Flight . | . . . Utility 7 | 2 4 1 Device 2 | 1 1 . Storage 2 | 1 1 . Processor . | . . . Hackware . | . . . Protection 3 | . 2 1 Artifact . | . . . Weapon 11 | 2 2 7 Energy Gun . | . . . Energy Cannon . | . . . Ballistic Gun 8 | 2 2 4 Ballistic Cannon . | . . . Launcher 1 | . . 1 Special Weapon 1 | . . 1 Impact Weapon 1 | . . 1 Slashing Weapon . | . . . Piercing Weapon . | . . . Special Melee Weapon . | . . . Unidentified Prototypes . | . . . Parts Lost 13 | . 2 11 Power 2 | . . 2 Propulsion 4 | . 1 3 Utility 4 | . 1 3 Weapon 3 | . . 3 Highest Loss Streak 6 | . 1 6 To Critical Strikes . | . . . Average Backups 9 | 1 7 11 Power . | . 1 . Propulsion 1 | . . 1 Utility 5 | . 3 6 Weapon 3 | . 2 3 Tool/Special . | . . . Unused Backups 10 | . 1 9 Power . | . . . Propulsion 2 | . 1 1 Utility 6 | . . 6 Weapon 2 | . . 2 Tool/Special . | . . . Average Slot Usage (%) 98 | . 99 97 Engine 13 | . 14 13 Treads 24 | . 27 23 Wheel 2 | . . 4 Device 10 | . 4 13 Storage 14 | . 14 14 Protection 3 | . 9 . Ballistic Gun 21 | . 28 18 Impact Weapon 5 | . . 8 Peak Build Rating 18 | 9 11 18 Average Rating 10 | 5 9 11 On Entrance 6 | . 9 10 Naked Turns . | . . . Heaviest Build 37 | 11 36 37 Greatest Support 40 | 40 40 40 Greatest Overweight (x) 1 | . . 1 Average Overweight (x) . | . . . Largest Inventory Capacity 15 | 8 15 15 Average Capacity 13 | 7 11 15 Most Carried 15 | 3 10 15 Average Carried 11 | 1 7 13 Final Capacity 15 | 8 15 15 Final Carried 13 | 3 9 13 Class Distribution -------------------- 100% | Mutant Dominant Class ---------------- Mutant | -10/Materials Mutant | -10/Subcaves Resources | -11 -10 -10 ----------- Run | Yrd Mat Sub Matter Collected 1210 | 302 431 477 Remotely . | . . . Salvage Created 1141 | 195 717 229 Parts 72 | 14 37 21 Haulers Intercepted 1 | . 1 . Recyclers Shooed 3 | 1 2 . Parts Field Recycled . | . . . Retrieved Matter . | . . . Parts Self-Destructed 17 | . . 17 Prevented 2 | . . 2 Kills | -11 -10 -10 ------- Run | Yrd Mat Sub Combat Hostiles Destroyed 24 | . 14 10 Guns 21 | . 14 7 AOE 3 | . . 3 Classes Destroyed 9 | 3 4 2 Worker 3 | 2 1 . Tunneler 3 | 3 . . Hauler 1 | . 1 . Recycler 3 | 1 2 . Watcher 3 | . 3 . Swarmer 8 | . 5 3 Grunt 10 | . 9 1 Artisan 1 | . . 1 Subdweller 6 | . . 6 Best Kill Streak 6 | 6 5 2 Combat Bots Only 5 | . 5 2 Max Kills in Single Turn 2 | 1 2 1 Gunslinging . | . . . Exploded 1 | . . 1 Melee . | . . . Uniques/NPCs Destroyed . | . . . Combat | -11 -10 -10 -------- Run | Yrd Mat Sub Hostile Shots Fired 182 | . 97 85 Missed 56 | . 31 25 Hits 126 | . 66 60 Projectile 126 | . 66 60 AOE 4 | . . 4 Damage Taken 1916 | . 674 1242 Core 255 | . 52 203 Absorbed by Shields . | . . . Core Remaining (%) 100 | 100 . . Volleys Fired 112 | 16 61 35 Largest 2 | 2 2 2 Hottest 65 | 40 46 65 Shots Fired 215 | 32 122 61 Gun 206 | 32 122 52 Cannon . | . . . Launcher 9 | . . 9 Special . | . . . Kinetic 215 | 32 122 61 Thermal . | . . . Explosive . | . . . Electromagnetic . | . . . Robot Hit Streak 16 | 6 11 16 Robot Miss Streak 6 | 2 6 5 Penetration Max . | . . . Secondary Targets 2 | . 2 . Max Gunslinging Chain 1 | . 1 . Shots Hit Robots 122 | 20 66 36 Core Hits 57 | 10 31 16 Critical Kills 2 | 1 1 . Critical Parts Destroyed 2 | 1 1 . Critical Strikes 4 | 2 2 . Destroy 4 | 2 2 . Melee Attacks 47 | . . 47 Impact 47 | . . 47 Slashing . | . . . Piercing . | . . . Sneak Attacks 1 | . . 1 Combat Hostiles . | . . . Follow-up Attacks . | . . . Damage Inflicted 2338 | 185 1000 1153 Guns 1603 | 185 997 421 Cannons . | . . . Explosions 675 | . . 675 Melee 57 | . . 57 Ramming 3 | . 3 . Kinetic 2278 | 185 997 1096 Thermal . | . . . Explosive . | . . . Electromagnetic . | . . . Impact 57 | . . 57 Slashing . | . . . Piercing . | . . . Highest Corruption 1 | . 1 1 Average Corruption 1 | . 1 1 Corruption Purged . | . . . Corruption Blocked . | . . . Effects 16 | . 2 14 Message Errors 2 | . . 2 Matter Fused 7 | . 1 6 Heat Flow Errors 1 | . . 1 Energy Discharges 2 | . 1 1 Data Loss (minor) 1 | . . 1 Data Loss (major) 1 | . . 1 Misfires 1 | . . 1 Alerts 1 | . . 1 Overload Shots . | . . . Overflow Damage 37 | . . 37 Projectiles . | . . . Explosions 20 | . . 20 Melee 17 | . . 17 Knockbacks 1 | . . 1 Impact 1 | . . 1 Kinetic . | . . . Secondary . | . . . Self-Inflicted Damage . | . . . Shots . | . . . Rammed 1 | . 1 . Targets Rammed 1 | . 1 . Kicked . | . . . Crushed . | . . . Highest Temperature 153 | . 153 144 Average Temperature 42 | . 41 59 Received Heat Transfer 408 | . 204 204 Siege Activations . | . . . Martial Activations . | . . . Shielding Activations . | . . . Robots Disrupted . | . . . Combat Hostiles . | . . . Robots Corrupted 1 | . . 1 Combat Hostiles . | . . . Parts Fried . | . . . Impact Corruptions 1 | . . 1 Robots Melted . | . . . Combat Hostiles . | . . . Parts Melted . | . . . Heat Transferred . | . . . Parts Sabotaged . | . . . Parts Stolen . | . . . Parts Stripped . | . . . Power Chain Reactions . | . . . Alert | -11 -10 -10 ------- Run | Yrd Mat Sub Maximum Alert Level 1 | . 1 . Low Security (%) 82 | 100 79 . Level 1 17 | . 20 . Level 2 . | . . . Level 3 . | . . . Level 4 . | . . . Level 5 . | . . . High Security . | . . . Max Security . | . . . Peak Influence 265 | 10 265 . Initial . | . . . Average 55 | 1 63 . Influence Increases 574 | 30 464 80 Destroy 0b10 Robot/C 360 | . 280 80 Destroy 0b10 Robot/NC 65 | 30 35 . Destroy Leader 68 | . 68 . Successful Hack 5 | . 5 . Select Force Hacks 30 | . 30 . Destroy Structure 1 | . 1 . Lose Combat Pursuer 45 | . 45 . Influence Decreases 574 | 30 259 285 Entered New Map 99 | . . 99 Time Decay 445 | 30 239 176 Lost Part 30 | . 20 10 Squads Dispatched 3 | . 3 . Investigation 3 | . 3 . Extermination . | . . . Reinforcement . | . . . Assault . | . . . Garrison . | . . . Intercept . | . . . Searches Triggered . | . . . Construction Impeded . | . . . Haulers Reinforced . | . . . Active Scanning Responses . | . . . Cargo Convoy Interrupts . | . . . Stealth | -11 -10 -10 --------- Run | Yrd Mat Sub Distress Signals 2 | . 2 . Communications Jammed . | . . . Distress Signals . | . . . Times Spotted 46 | . 24 22 Peak Tracking Total 5 | . 4 5 Tactical Retreats 2 | . 1 1 Traps | -11 -10 -10 ------- Run | Yrd Mat Sub Traps Triggered 2 | . 2 . Indirectly . | . . . Trap Hack Attempts . | . . . Triggered . | . . . Disarmed . | . . . Reprogrammed . | . . . Reused . | . . . Traps Extracted . | . . . Installed . | . . . Triggered . | . . . Machines | -11 -10 -10 ---------- Run | Yrd Mat Sub Machines Disabled 1 | . . 1 Max in Single Turn 1 | . . 1 Machines Repaired . | . . . Machines Dismantled . | . . . Machines Sabotaged . | . . . Overloaded Fab Kills . | . . . Hacking | -11 -10 -10 --------- Run | Yrd Mat Sub Machines Accessed 6 | . 3 3 Terminals 1 | . 1 . Fabricators . | . . . Repair Stations . | . . . Recycling Units 2 | . 2 . Scanalyzers . | . . . Garrison Access . | . . . Total Hacks 14 | . 11 3 Successful 8 | . 5 3 Failed 6 | . 6 . Catastrophic . | . . . Database Lockouts . | . . . Manual 3 | . 3 . Terminals 3 | . 3 . Fabricators . | . . . Repair Stations . | . . . Recycling Units 8 | . 8 . Scanalyzers . | . . . Garrison Access . | . . . Terminal Hacks 3 | . . 3 Open Door 1 | . . 1 Proto ID Catalog 1 | . . 1 Release Object 1 | . . 1 Fabricator Hacks . | . . . Repair Station Hacks . | . . . Recycling Unit Hacks 3 | . 3 . Report Inventory 2 | . 2 . Retrieve Components 1 | . 1 . Scanalyzer . | . . . Garrison Access Hacks . | . . . Unauthorized Hacks 2 | . 2 . Terminals 1 | . 1 . Botnet 1 | . 1 . Fabricators . | . . . Repair Stations . | . . . Recycling Units 1 | . 1 . Tunnel 1 | . 1 . Scanalyzers . | . . . Garrison Access . | . . . Data Cores Recovered . | . . . Used . | . . . Hacking Detections 3 | . 3 . Full Trace Events 1 | . 1 . Feedback Events . | . . . Feedback Blocked . | . . . Robot Schematics Acquired . | . . . Robots Built . | . . . Authchips . | . . . Time . | . . . Total Robot Build Rating . | . . . Part Schematics Acquired . | . . . Parts Built . | . . . Authchips . | . . . Time . | . . . Total Part Build Rating . | . . . Parts Repaired . | . . . Time . | . . . Parts Recycled . | . . . Recycled Matter . | . . . Retrieved Matter . | . . . Retrieved Components 7 | . 7 . Parts Scanalyzed . | . . . Part Schematics Acquired . | . . . Parts Damaged . | . . . Bothacking | -11 -10 -10 ------------ Run | Yrd Mat Sub Used RIF Installer . | . . . Robots Hacked . | . . . Non-combat . | . . . Combat . | . . . Robot Hacks Applied . | . . . Relay Couplers Released . | . . . Fabnet Peak Effective % . | . . . Robots Rewired . | . . . Allies Hacked . | . . . Hacks Repelled . | . . . Allies | -11 -10 -10 -------- Run | Yrd Mat Sub Total Allies . | . . . Largest Group . | . . . Highest-Rated Group . | . . . Highest-Rated Ally . | . . . Total Orders . | . . . Ally Attacks . | . . . Total Damage . | . . . Kills . | . . . Allies Corrupted . | . . . Allies Melted . | . . . Intel | -11 -10 -10 ------- Run | Yrd Mat Sub Active Infowar (turns) 2733 | 22 386 2325 Terrain 90 | 22 68 . Structural 2643 | . 318 2325 Robot Analysis Total . | . . . Derelict Logs Recovered 2 | . . 2 Drone Launches . | . . . Drone Recoveries . | . . . Exploration | -11 -10 -10 ------------- Run | Yrd Mat Sub Turns Passed 3723 | 161 1120 2442 Spaces Moved 1965 | 68 531 1366 Core 2 | 2 . . Treads 1639 | 66 531 1042 Legs . | . . . Wheels 324 | . . 324 Hover . | . . . Flight . | . . . Fastest Speed 50 | 50 160 120 Average Speed 158 | 156 160 157 Slowest Speed 240 | 160 160 240 Overloaded Moves . | . . . Propulsion Burnouts . | . . . Robots Hopped . | . . . Potential Cave-ins . | . . . Cave-ins Triggered . | . . . Exploration Rate (%) 57 | 4 86 82 Regions Visited 2 Branch Regions 1 Pre-discovered Areas 2 | . 1 1 Known Exits Taken . | . . . Unknown Exits Taken 2 | 1 1 . Scrap Searched 7 | . . 7 Spaces Dug 7 | . . 7 Terrain Destroyed 87 | . . 87 Melee 7 | . . 7 Projectile . | . . . AOE 80 | . . 80 Terrain Rammed . | . . . Walls Destroyed . | . . . Machines Disabled . | . . . Actions | -11 -10 -10 --------- Run | Yrd Mat Sub Total 2319 | 93 705 1521 Wait 114 | . 92 22 Move 1963 | 67 530 1366 Hop . | . . . Pick Up 23 | 3 8 12 Fast Attach 10 | 7 1 2 Attach 7 | . 2 5 Detach 2 | . 1 1 Swap 26 | . 5 21 Drop 14 | . 4 10 Fire 112 | 16 61 35 Melee 47 | . . 47 Ram . | . . . Kick . | . . . Crush 1 | . 1 . Escape Stasis . | . . . Rewire . | . . . Trap . | . . . Miscellaneous . | . . . Route ------- -11/Scrapyard -10/Materials (discovered 4 exits: [*Mat x3] / *Sub) -10/Subcaves (discovered 3 exits: [*Mat x2] / [*Rec]) History --------- Turn | Location | Event 15 | -11/Scrapyard | Discovered new exit (range 15) 162 | -11/Scrapyard | Entered Materials 308 | -10/Materials | Build established: Mutant 708 | -10/Materials | Discovered new exit (range 15) 820 | -10/Materials | Discovered new exit (range 15) 1041 | -10/Materials | Discovered new exit (range 10) 1269 | -10/Materials | Discovered new exit (range 9) 1282 | -10/Materials | Entered Subcaves 1364 | -10/Subcaves | Learned 2 Materials zone layouts 1583 | -10/Subcaves | Discovered new exit (range 15) 1709 | -10/Subcaves | Disturbed a concealed Subdweller 1766 | -10/Subcaves | Shifting Twisted Machinery released Battle Rifle 1802 | -10/Subcaves | Shifting Twisted Machinery released Humpback 2070 | -10/Subcaves | Learned Materials stockpile data 2292 | -10/Subcaves | Curiously followed by a Cobbler waking with a query about "LVR3C" 2561 | -10/Subcaves | Ambushed by Subdwellers from Twisted Machinery 2565 | -10/Subcaves | Core integrity fell below 50% 2754 | -10/Subcaves | Shifting Twisted Machinery released Battle Rifle 2848 | -10/Subcaves | Discovered new exit (range 13) 2970 | -10/Subcaves | A swath of the cavern ceiling suddenly collapsed 3058 | -10/Subcaves | Learned location of Zion (-6) 3058 | -10/Subcaves | Met a Zionite searching for "candidates" 3184 | -10/Subcaves | A swath of the cavern ceiling suddenly collapsed 3333 | -10/Subcaves | Visited 4L-MR0's lab 3405 | -10/Subcaves | Found Arachnoskeleton 3492 | -10/Subcaves | Discovered new exit (range 14) 3641 | -10/Subcaves | A Subdweller sparked back to life 3641 | -10/Subcaves | A Subdweller sparked back to life 3641 | -10/Subcaves | A Subdweller sparked back to life 3686 | -10/Subcaves | Lost 6 parts (1p1n2u2w) 3711 | -10/Subcaves | Core integrity fell below 20% 3724 | -10/Subcaves | Destroyed by J2-W70(R) with Subdweller Machine Gun Last Messages --------------- H8-O9C(O) puts together Riot Gun. Acquired Unknown Engine. Identified Mak. Power Source. H8-O9C(O) collects matter. Acquired 1 matter. Structural Scanner destroyed. Destroyed Sub. Power Source. Sub. Shrapnel Launcher destroyed. BB-8BO(R) creaks and sparks as it begins to move. J2-W70(R) creaks and sparks as it begins to move. HE-TOS(R) creaks and sparks as it begins to move. H8-O9C(O) cries out in pain. H8-O9C(O) destroyed. Battle Rifle destroyed. Med. Armor Plating destroyed. BB-8BO(R) affixes Scrap Shield Fragment to Scrap Shield. Sub. Monowheel destroyed. Mak. Power Source destroyed. Med. Armor Plating destroyed. TU&TSVC/UYGILRBBLSZIGEM25AS9BELC4U7H,FH8 Map ----- +----------------------------------------------------+ | ???????????#### ## ######### = # | | ????????????###"# ######## ## | | ????????????## # ##???### ## # | | ????????????## % ####????## < #### # | | ????????????#### ####???### ## #### | | ????????????###### ##????## #### ### # | | ???????????######## ##????### ###### #### | | ???????????###"###""# ##?###### ### #### | | ??????????###""""###"###?###### ????## ###?? | | ??????????####""##"#### #### ???######?? | | ??????????###""# # ###" #### # ??####??? | | ??????????#####"#"""### ### # #####????????? | | ??????????###" """"" #" ##### #####????????? | | ??????????###"###""""#" ###?# #???????????? | | ?????????#### ##"############# ##??????????????? | | ?????????### ""############### ##??????????????? | | ????????### ######??###### ## ###??????????????? | | ????????### ####????##### # * ##??????????????? | | ????????## ###?????## ###?????????????? | | ????????### #####??## ###?????????????? | | #######?### ######?## < ##?????????????? | | ########### ## ###### %###?????????????? | | ## "##### ###### ###?????????????? | | ####]""### ##### ##??????????????? | | #### "## ##### ##??????????????? | | ## ###" ## @ = ##??????????????? | | ### #" ####; ##??????????????? | | ### #####; ###??????????????? | | ### #### = ###??????????????? | | ### #" # ### & [ ##???????????????? | | #### ## # ## [ & ###???????????????? | | ##" # # ;; ;######???????????????? | | #+## "## ## R## #####????????????????? | | # ##[ "## ### ##########???????????????????? | | # " [ ### ### [ #########???????????????????? | | #" ### [ ##????????????????????? | | ########## ##!& ##????????????????????? | | ########## #### ####????????????????????? | | ????????## ##### ########????????????????????? | | ????????##"""##?#### ######??????????????????????? | | ????????##"""###### ###?????????????????????????? | | ????????## ######## ###?????????????????????????? | | ????????##### #"## ##?????????????????????????? | | ????????### " " ###?????????????????????????? | | ????????### ""##""# ###?????????????????????????? | | ????????##"" ""########??????????????????????????? | | ????????##""" #########??????????????????????????? | | ????????###"" ##???????????????????????????????? | | ????????####" ##???????????????????????????????? | | ?????????### ##???????????????????????????????? | +----------------------------------------------------+ Best States ------------- Heat Dissipation 25 Energy Generation 15 Energy Capacity 250 Matter Stores 300 Matter Capacity 300 Sight Range 16 Terrain Scan Range 16 Terrain Scan Density 10 Armor Coverage 225 Evasion (%) 40 Recoil Reduction 2 Item Schematics ----------------- None Robot Schematics ------------------ None Fabricated ------------ Nothing Repaired ---------- Nothing Alien Tech Used ----------------- None Achievements -------------- None Challenges ------------ None Game ------ Seed TransmissionShockStripper Manual? 0 Play Time 00:22:58 Cumulative 126.7 hours Start 2025.06.22 @ 22:02:43 End 2025.06.22 @ 22:24:57 Sessions 1 Manual Loads 0 Difficulty Rogue Special Mode None Game No. 134 Rogue 134 Adventurer 0 Explorer 0 Win Type - Total 2 Types 1/0/0/1/0/0/0/0/0/0 Lore% 61 Gallery% 57 Achievement% 51 Wizard Run 0 Options --------- Layout 1 ASCII 0 Keyboard 1 Movement Numpad Keybinds 0 Fullscreen 1 Font 32/SmallcapsGlow Map View 77x35 Zoom Use 0% Tactical HUD 0 Map Filters NONE Filters NONE Steam 1 RUN: 98f41260-73aa-4608-ad14-c5283931b100